Cogmind - Beta 16.1 @@@ ROGUE MODE // 2026.04.10 @ 02:12:12 Player: Maelyn Result: Destroyed by G-47 Trooper with Particle Gun Performance ------------- Evolutions (0) 0 Regions Visited (2) 400 Robots Destroyed (31) 155 Value Destroyed (727) 727 Prototype IDs (0) 0 Alien Tech Used (0) 0 Bonus (60) 60 TOTAL SCORE: 1342 Bonus ------- Follower Combat Kills 60 Cogmind --------- Core Integrity 0/250 Matter 257/300 Energy 349/350 System Corruption 0% Temperature Cool (16) Movement Walking (120) Location -10/Mines Parts ------- > --- POWER (1) -------- Ion Engine > --- PROPULSION (2) --- Aluminum Leg Aluminum Leg > --- UTILITY (2) ------ Medium Storage Unit Small Battery > --- WEAPON (2) ------- Medium Laser Assault Rifle > --- INVENTORY (10) --- Light Treads Aluminum Leg Improved Heat Sink High-capacity Matter Pod (129) ECM Suite Hacking Suite Small Laser Peak State ------------ > --- POWER ------------ Ion Engine > --- PROPULSION ------- Aluminum Leg Aluminum Leg > --- UTILITY ---------- High-capacity Storage Unit Small Battery > --- WEAPON ----------- Medium Laser Medium Laser > --- INVENTORY -------- Light Treads Aluminum Leg Aluminum Leg Aluminum Leg High-capacity Matter Pod ECM Suite Hacking Suite Assault Rifle [Rating: 8] Favorites ----------- Power Ion Engine Engine Ion Engine Propulsion Light Treads Treads Light Treads Leg Aluminum Leg Utility High-capacity Storage Unit Device Seismic Detector Storage High-capacity Storage Unit Weapon Assault Rifle Energy Gun Medium Laser Ballistic Gun Assault Rifle Build | -11 -10 -10 ------- Run | Yrd Mat Min Slots Evolved . | . . . Power . | . . . Propulsion . | . . . Utility . | . . . Weapon . | . . . Parts Attached 19 | 7 9 3 Power 3 | 1 2 . Engine 3 | 1 2 . Core . | . . . Reactor . | . . . Propulsion 6 | 2 2 2 Treads 2 | 2 . . Leg 4 | . 2 2 Wheel . | . . . Hover . | . . . Flight . | . . . Utility 5 | 2 2 1 Device 1 | 1 . . Storage 4 | 1 2 1 Processor . | . . . Hackware . | . . . Protection . | . . . Artifact . | . . . Weapon 5 | 2 3 . Energy Gun 2 | . 2 . Energy Cannon . | . . . Ballistic Gun 3 | 2 1 . Ballistic Cannon . | . . . Launcher . | . . . Special Weapon . | . . . Impact Weapon . | . . . Slashing Weapon . | . . . Piercing Weapon . | . . . Special Melee Weapon . | . . . Unidentified Prototypes . | . . . Parts Lost 10 | . 7 3 Power 2 | . 2 . Propulsion 4 | . 2 2 Utility 1 | . 1 . Weapon 3 | . 2 1 Highest Loss Streak 4 | . 4 3 To Critical Strikes . | . . . Average Backups 7 | 3 7 7 Power . | . . . Propulsion 3 | 1 3 3 Utility 2 | . 2 3 Weapon . | 1 . . Tool/Special . | . . . Unused Backups 9 | . 2 7 Power 1 | . 1 . Propulsion 2 | . . 2 Utility 4 | . . 4 Weapon 2 | . 1 1 Tool/Special . | . . . Average Slot Usage (%) 91 | . 90 96 Engine 11 | . 11 14 Treads 13 | . 15 . Leg 13 | . 12 24 Device 7 | . 8 . Storage 17 | . 15 28 Energy Gun 6 | . 3 20 Ballistic Gun 19 | . 21 7 Peak Build Rating 8 | 7 8 8 Average Rating 6 | 5 6 7 On Entrance 5 | . 7 8 Avg Prop Armor Cover (%) . | . . . Naked Turns . | . . . Heaviest Build 50 | 15 50 50 Greatest Support 40 | 40 40 20 Greatest Overweight (x) 16 | . 16 2 Average Overweight (x) . | . . . Largest Inventory Capacity 20 | 8 20 20 Average Capacity 14 | 7 15 10 Most Carried 9 | 7 8 9 Average Carried 7 | 4 7 7 Final Capacity 20 | 8 20 10 Final Carried 8 | 4 8 7 Class Distribution -------------------- 100% | Mutant Dominant Class ---------------- Mutant | -10/Materials Mutant | -10/Mines Resources | -11 -10 -10 ----------- Run | Yrd Mat Min Matter Collected 973 | 229 641 103 Remotely . | . . . Salvage Created 923 | 76 652 195 Parts 69 | 11 49 9 Haulers Intercepted 1 | . 1 . Recyclers Shooed . | . . . Parts Field Recycled . | . . . Retrieved Matter . | . . . Parts Self-Destructed . | . . . Prevented . | . . . Parts Restored . | . . . Kills | -11 -10 -10 ------- Run | Yrd Mat Min Combat Hostiles Destroyed 18 | . 14 4 Guns 18 | . 14 4 Classes Destroyed 8 | 1 7 . Builder 1 | . 1 . Tunneler 5 | 4 1 . Hauler 1 | . 1 . Mechanic 1 | . 1 . Operator 3 | . 3 . Watcher 2 | . 2 . Swarmer 3 | . 3 . Grunt 15 | . 11 4 Best Kill Streak 6 | 3 6 4 Combat Bots Only 6 | . 6 4 Max Kills in Single Turn 1 | 1 1 1 Gunslinging . | . . . Exploded . | . . . Melee . | . . . Uniques/NPCs Destroyed . | . . . Combat | -11 -10 -10 -------- Run | Yrd Mat Min Hostile Shots Fired 169 | . 139 30 Missed 42 | . 38 4 Hits 127 | . 101 26 Projectile 127 | . 101 26 Critical Strikes 3 | . 1 2 Damage Taken 1455 | . 1117 338 Core 265 | . 201 64 Absorbed by Shields . | . . . Core Remaining (%) 100 | 100 . . Volleys Fired 107 | 8 83 16 Largest 2 | 2 2 2 Hottest 100 | 40 40 100 Shots Fired 177 | 16 137 24 Gun 177 | 16 137 24 Cannon . | . . . Launcher . | . . . Special . | . . . Kinetic 159 | 16 137 6 Thermal 18 | . . 18 Explosive . | . . . Electromagnetic . | . . . Robot Hit Streak 12 | 5 12 6 Robot Miss Streak 4 | 1 4 3 Penetration Max . | . . . Secondary Targets 2 | . . 2 Max Gunslinging Chain 1 | . . 1 Shots Hit Robots 121 | 13 91 17 Core Hits 50 | 4 36 10 Critical Kills . | . . . Critical Parts Destroyed . | . . . Critical Strikes . | . . . Melee Attacks . | . . . Impact . | . . . Slashing . | . . . Piercing . | . . . Sneak Attacks . | . . . Combat Hostiles . | . . . Follow-up Attacks . | . . . Damage Inflicted 1602 | 158 1216 228 Guns 1589 | 158 1203 228 Cannons . | . . . Explosions . | . . . Melee . | . . . Ramming 13 | . 13 . Kinetic 1411 | 158 1203 50 Thermal 178 | . . 178 Explosive . | . . . Electromagnetic . | . . . Impact . | . . . Slashing . | . . . Piercing . | . . . Highest Corruption . | . . . Average Corruption . | . . . Corruption Purged . | . . . Corruption Blocked . | . . . Overload Shots . | . . . Overflow Damage . | . . . Projectiles . | . . . Explosions . | . . . Melee . | . . . Knockbacks . | . . . Impact . | . . . Kinetic . | . . . Secondary . | . . . Self-Inflicted Damage . | . . . Shots . | . . . Rammed 1 | . 1 . Targets Rammed 4 | . 4 . Kicked 1 | . 1 . Crushed 2 | . 2 . Highest Temperature 483 | . 8 483 Average Temperature 185 | . 4 260 Received Heat Transfer 804 | . 576 228 Effects 2 | . . 2 Interference 1 | . . 1 Matter Decay 1 | . . 1 Siege Activations . | . . . Martial Activations . | . . . Shielding Activations . | . . . Robots Disrupted . | . . . Combat Hostiles . | . . . Robots Corrupted . | . . . Combat Hostiles . | . . . Parts Fried . | . . . Impact Corruptions . | . . . Robots Melted . | . . . Combat Hostiles . | . . . Parts Melted . | . . . Heat Transferred 518 | . . 518 Parts Sabotaged . | . . . Parts Stolen . | . . . Parts Stripped . | . . . Power Chain Reactions . | . . . Alert | -11 -10 -10 ------- Run | Yrd Mat Min Maximum Alert Level . | . . . Low Security (%) 100 | 100 100 100 Level 1 . | . . . Level 2 . | . . . Level 3 . | . . . Level 4 . | . . . Level 5 . | . . . High Security . | . . . Max Security . | . . . Peak Influence 132 | 5 132 70 Initial 10 | . . 10 Average 30 | . 34 24 Influence Increases 567 | 20 392 155 Destroy 0b10 Robot/C 400 | . 280 120 Destroy 0b10 Robot/NC 65 | 20 45 . Destroy Leader 96 | . 66 30 Allied During Kill 5 | . . 5 Destroy Structure 1 | . 1 . Influence Decreases 567 | 20 365 182 Entered New Map 17 | . . 17 Time Decay 475 | 20 350 105 Lost Part 35 | . 15 20 Lost Ally 40 | . . 40 Squads Dispatched 3 | . 3 . Investigation 1 | . 1 . Extermination . | . . . Reinforcement 2 | . 2 . Assault . | . . . Garrison . | . . . Intercept . | . . . Searches Triggered . | . . . Construction Impeded . | . . . Haulers Reinforced . | . . . Active Scanning Responses . | . . . Cargo Convoy Interrupts . | . . . Stealth | -11 -10 -10 --------- Run | Yrd Mat Min Distress Signals 1 | . 1 . Communications Jammed . | . . . Distress Signals . | . . . Times Spotted 40 | . 32 8 Peak Tracking Total 7 | . 7 3 Tactical Retreats . | . . . Traps | -11 -10 -10 ------- Run | Yrd Mat Min Traps Triggered 1 | . 1 . Indirectly . | . . . Trap Hack Attempts . | . . . Triggered . | . . . Disarmed . | . . . Reprogrammed . | . . . Reused . | . . . Traps Extracted . | . . . Installed . | . . . Triggered . | . . . Machines | -11 -10 -10 ---------- Run | Yrd Mat Min Machines Disabled . | . . . Max in Single Turn . | . . . Machines Repaired . | . . . Machines Dismantled . | . . . Machines Sabotaged . | . . . Overloaded Fab Kills . | . . . Hacking | -11 -10 -10 --------- Run | Yrd Mat Min Machines Accessed 1 | . 1 . Terminals 1 | . 1 . Fabricators . | . . . Repair Stations . | . . . Recycling Units . | . . . Scanalyzers . | . . . Garrison Access . | . . . Total Hacks 2 | . 2 . Successful 1 | . 1 . Failed 1 | . 1 . Catastrophic . | . . . Database Lockouts . | . . . Manual 2 | . 2 . Terminals 2 | . 2 . Fabricators . | . . . Repair Stations . | . . . Recycling Units . | . . . Scanalyzers . | . . . Garrison Access . | . . . Terminal Hacks 1 | . 1 . Robot Analysis 1 | . 1 . Fabricator Hacks . | . . . Repair Station Hacks . | . . . Recycling Unit Hacks . | . . . Scanalyzer . | . . . Garrison Access Hacks . | . . . Unauthorized Hacks . | . . . Terminals . | . . . Fabricators . | . . . Repair Stations . | . . . Recycling Units . | . . . Scanalyzers . | . . . Garrison Access . | . . . Data Cores Recovered 1 | . 1 . Used . | . . . Hacking Detections 1 | . 1 . Full Trace Events . | . . . Feedback Events . | . . . Feedback Blocked . | . . . Robot Schematics Acquired . | . . . Robots Built . | . . . Authchips . | . . . Time . | . . . Total Robot Build Rating . | . . . Part Schematics Acquired . | . . . Parts Built . | . . . Authchips . | . . . Time . | . . . Total Part Build Rating . | . . . Part Studies Acquired . | . . . Parts Repaired . | . . . Time . | . . . Parts Recycled . | . . . Recycled Matter . | . . . Retrieved Matter . | . . . Retrieved Components . | . . . Parts Scanalyzed . | . . . Part Schematics Acquired . | . . . Parts Damaged . | . . . Bothacking | -11 -10 -10 ------------ Run | Yrd Mat Min Used RIF Installer . | . . . Robots Hacked . | . . . Non-combat . | . . . Combat . | . . . Robot Hacks Applied . | . . . Relay Couplers Released . | . . . Fabnet Peak Effective % . | . . . Robots Rewired . | . . . Allies Hacked . | . . . Hacks Repelled . | . . . Allies | -11 -10 -10 -------- Run | Yrd Mat Min Total Allies 3 | . . 3 Largest Group 3 | . . 3 Highest-Rated Group 40 | . . 40 Highest-Rated Ally 16 | . . 16 Total Orders . | . . . Ally Attacks 24 | . . 24 Total Damage 230 | . . 230 Kills 2 | . . 2 Allies Corrupted . | . . . Allies Melted . | . . . Intel | -11 -10 -10 ------- Run | Yrd Mat Min Active Infowar (turns) 1507 | 41 1466 . Seismic 1507 | 41 1466 . Robot Analysis Total 1 | . 1 . Derelict Logs Recovered 2 | . . 2 Drone Launches . | . . . Drone Recoveries . | . . . Exploration | -11 -10 -10 ------------- Run | Yrd Mat Min Turns Passed 2911 | 209 2324 378 Spaces Moved 1325 | 108 971 246 Core 8 | 4 4 . Treads 712 | 104 608 . Legs 605 | . 359 246 Wheels . | . . . Hover . | . . . Flight . | . . . Fastest Speed 50 | 50 160 120 Average Speed 194 | 155 213 134 Slowest Speed 850 | 160 850 260 Overloaded Moves . | . . . Propulsion Burnouts . | . . . Robots Hopped . | . . . Potential Cave-ins . | . . . Cave-ins Triggered . | . . . Exploration Rate (%) 50 | 4 96 50 Regions Visited 2 Branch Regions 1 Pre-discovered Areas . | . . . Known Exits Taken . | . . . Unknown Exits Taken 2 | 1 1 . Scrap Searched . | . . . Spaces Dug . | . . . Terrain Destroyed . | . . . Melee . | . . . Projectile . | . . . AOE . | . . . Terrain Rammed . | . . . Walls Destroyed . | . . . Machines Disabled . | . . . Actions | -11 -10 -10 --------- Run | Yrd Mat Min Total 1486 | 133 1083 270 Wait 1 | . 1 . Move 1323 | 107 970 246 Hop . | . . . Pick Up 24 | 11 10 3 Fast Attach 4 | . 4 . Attach 14 | 7 4 3 Detach 1 | . 1 . Swap 2 | . 1 1 Drop 5 | . 4 1 Fire 107 | 8 83 16 Melee . | . . . Ram . | . . . Kick 1 | . 1 . Crush 3 | . 3 . Escape Stasis . | . . . Rewire 1 | . 1 . Trap . | . . . Miscellaneous . | . . . Route ------- -11/Scrapyard -10/Materials (discovered 4 exits: [*Mat x3] / [*Min]) -10/Mines History --------- Turn | Location | Event 28 | -11/Scrapyard | Discovered new exit (range 16) 210 | -11/Scrapyard | Entered Materials 306 | -10/Materials | Build established: Mutant 514 | -10/Materials | Discovered new exit (range 6) 565 | -10/Materials | Discovered new exit (range 8) 892 | -10/Materials | Discovered new exit (range 16) 1603 | -10/Materials | Discovered new exit (range 4) 1681 | -10/Materials | Core integrity fell below 50% 1699 | -10/Materials | Core integrity fell below 20% 1714 | -10/Materials | Lost 4 parts (1p1u2w) 2534 | -10/Materials | Entered Mines 2739 | -10/Mines | Lost 3 parts (2n1w) 2746 | -10/Mines | Assisted by bots powering up and referring to "LRC-V3" 2765 | -10/Mines | Learned 2 Materials zone layouts 2912 | -10/Mines | Destroyed by G-47 Trooper with Particle Gun Last Messages --------------- 02732_ R-06 Scavenger collects Sml. Laser. 02733_ Acquired Sml. Laser. 02735_ R-06 Scavenger collects Aluminum Leg. 02736_ Acquired 56 matter. 02740_ Acquired 47 matter. 02746_ Trooper 1a: "Hello LRC-V3. What is your command?" 02746_ Mercenary 1a: "Hello LRC-V3. What is your command?" 02746_ Trooper 1b: "Hello LRC-V3. What is your command?" 02765_ Acquired derelict log, extracted data. Data stored: Materials zone layouts (x2). 02778_ Trooper 1b destroyed. 02797_ R-06 Scavenger collects Aluminum Leg. 02810_ K-01 Serf collects debris. 02819_ K-01 Serf cleans the Plasma Injector. 02827_ K-01 Serf collects debris. 02889_ Mercenary 1a destroyed. 02899_ Trooper 1a suffers critical hit (Burn). 02900_ Trooper 1a overheating. 02904_ Trooper 1a destroyed. 02910_ Critical hit (Burn: +37). Map ----- +----------------------------------------------------+ | ????????## ##??????# #???????????????????? | | ?????#### ##?????# #???????????????????? | | ?????# ####??# ### #???????????????????? | | ?????# % #### #?## ##???????????????????? | | ?????# % #??####????????????????????? | | ?????##### #??????????????????????????? | | ?????????# ## #######??????????????????????????? | | ???????### ######????????????????????????????????? | | ???????# #?????????????????????????????????????? | | ???????# ###???????????????? ???????????????? | | ???????# ######????????????# ?????????????? | | ???????# % % #???????????## #??????????? | | ???????# ####$#??????????## #??????????? | | ????#??# #??????????????? #??????????? | | ?#### ## ##?????????????? #??????????? | | ##?????????????? ???????????? | | ##### #?????????????? #???????????? | | ???????# #??????????????? #???????????? | | ???????# #??????????????? #????????????? | | ???????## #???????????????? #????????????? | | ????????## #???###?????????? #?????????????? | | ?????????# #### ##?????????# | #??????????????? | | ???????### #????######g*[ ##?????????????? | | ??????## #????# g=%* ##????????????? | | ????### #????# #????????????? | | ?#### ##????#@ #### #??????????? | | ## """ ##?????# #??### #???????? | | # """ #????### ##????# ????? | | # """ ## ###### ##????# ???? | | ## ## ### #?????# ###### ????? | | ?###?## ##?# #??????###??????????? | | ??????# ##??######## ##???????????????????? | | ??????# #??????????# #####????????????????????? | | ??????# #?????????# ##???????????????????????? | | ??????# #????????# ##??????????????????????? | | ??????# #??????## #??????????????????????? | | ??????# #?????# #??????????????????????? | | ??????# #????# #??????????????????????? | | ??????## ##????# ##??????????????????????? | | ???????#######?????## ###???????????????????????? | | ????????????????????###??????????????????????????? | | ?????????????????????????????????????????????????? | | ?????????????????????????????????????????????????? | | | | | | | | | | | | | | | +----------------------------------------------------+ Best States ------------- Heat Dissipation 25 Energy Generation 10 Energy Capacity 350 Matter Stores 300 Matter Capacity 300 Sight Range 16 Terrain Scan Density 10 Evasion (%) 55 Recoil Reduction 2 Item Schematics ----------------- None Robot Schematics ------------------ None Fabricated ------------ Nothing Repaired ---------- Nothing Studied --------- None Alien Tech Used ----------------- None Achievements -------------- None Challenges ------------ None Game ------ Seed SniperOvertunedSubcomponent Manual? 0 Play Time 00:21:34 Cumulative 29.3 hours Start 2026.04.10 @ 01:54:06 End 2026.04.10 @ 02:12:12 Sessions 1 Manual Loads 0 Difficulty Rogue Special Mode None Game No. 83 Rogue 83 Adventurer 0 Explorer 0 Win Type - Total 0 Types 0/0/0/0/0/0/0/0/0/0 Lore% 13 Gallery% 22 Achievement% 14 Wizard Run 0 Options --------- Layout 2 ASCII 0 Keyboard 1 Movement Vi Keybinds 0 Fullscreen 0 Font 16/Tamsyn Map View 64x51 Zoom Use 0% Tactical HUD 1 Map Filters NONE Filters NONE Steam 1 RUN: 64e0971f-4263-4c4e-b75d-a137b2e4357b